Cogmind - Beta 16.1 @@@ ROGUE MODE // 2026.04.23 @ 18:37:26 Player: beans Result: Destroyed by G-47 Trooper with Particle Gun Performance ------------- Evolutions (2) 1000 Regions Visited (7) 1400 Robots Destroyed (74) 370 Value Destroyed (1391) 1391 Prototype IDs (0) 0 Alien Tech Used (0) 0 Bonus (0) 0 TOTAL SCORE: 4161 Bonus ------- None Cogmind --------- Core Integrity 0/550 Matter 367/500 Energy 95/100 System Corruption 0% Temperature Cool (36) Movement Core (500) Ox9 Location -8/Materials Parts ------- > --- POWER (1) -------- (None) > --- PROPULSION (3) --- (None) > --- UTILITY (4) ------ Large Storage Unit High-capacity Matter Pod > --- WEAPON (3) ------- Missile Launcher > --- INVENTORY (15) --- Large Matter Pod (150) Large Matter Pod (150) Experimental Sensor Array Terrain Scanner Medium Armor Plating Rocket Launcher Rocket Launcher Rocket Launcher Missile Launcher Peak State ------------ > --- POWER ------------ (None) > --- PROPULSION ------- Light Treads Carbon-fiber Leg > --- UTILITY ---------- Improved Heat Sink Large Storage Unit High-capacity Matter Pod Compact Matter Pod > --- WEAPON ----------- Heavy Assault Rifle Heavy Assault Rifle Missile Launcher > --- INVENTORY -------- Aluminum Leg Large Matter Pod Large Matter Pod Experimental Sensor Array Medium Armor Plating Medium Armor Plating Heavy Assault Rifle Heavy Assault Rifle Rocket Launcher Rocket Launcher Rocket Launcher Missile Launcher Missile Launcher [Rating: 22] Favorites ----------- Power Light Ion Engine Engine Light Ion Engine Power Core Light Nuclear Core Propulsion Light Treads Treads Light Treads Leg Carbon-fiber Leg Utility Large Storage Unit Device Improved Heat Sink Storage Large Storage Unit Protection Medium Armor Plating Weapon Heavy Assault Rifle Ballistic Gun Heavy Assault Rifle Launcher Rocket Launcher Build | -11 -10 -10 -9 -9 -9 -8 -8 ------- Run | Yrd Mat Min Mat Min Exi Min Mat Slots Evolved 4 | . . . 2 . . . 2 Power . | . . . . . . . . Propulsion 1 | . . . 1 . . . . Utility 2 | . . . . . . . 2 Weapon 1 | . . . 1 . . . . Parts Attached 23 | 5 4 5 . . . 1 8 Power 2 | 1 . 1 . . . . . Engine 1 | 1 . . . . . . . Core 1 | . . 1 . . . . . Reactor . | . . . . . . . . Propulsion 6 | 4 . 1 . . . 1 . Treads 3 | 2 . 1 . . . . . Leg 3 | 2 . . . . . 1 . Wheel . | . . . . . . . . Hover . | . . . . . . . . Flight . | . . . . . . . . Utility 5 | . 1 1 . . . . 3 Device 1 | . . 1 . . . . . Storage 3 | . 1 . . . . . 2 Processor . | . . . . . . . . Hackware . | . . . . . . . . Protection 1 | . . . . . . . 1 Artifact . | . . . . . . . . Weapon 10 | . 3 2 . . . . 5 Energy Gun . | . . . . . . . . Energy Cannon . | . . . . . . . . Ballistic Gun 6 | . 2 2 . . . . 2 Ballistic Cannon . | . . . . . . . . Launcher 4 | . 1 . . . . . 3 Special Weapon . | . . . . . . . . Impact Weapon . | . . . . . . . . Slashing Weapon . | . . . . . . . . Piercing Weapon . | . . . . . . . . Special Melee Weapon . | . . . . . . . . Unidentified Prototypes . | . . . . . . . . Parts Lost 16 | . . 3 1 . . 1 11 Power 2 | . . 1 . . . 1 . Propulsion 5 | . . 1 1 . . . 3 Utility 3 | . . . . . . . 3 Weapon 6 | . . 1 . . . . 5 Highest Loss Streak 11 | . . 3 1 . . 1 11 To Critical Strikes . | . . . . . . . . Average Backups 12 | 2 5 10 11 13 14 15 12 Power . | . . . 1 1 . . . Propulsion 1 | 1 1 1 1 1 1 1 . Utility 4 | . . 2 3 4 5 7 5 Weapon 6 | . 3 5 5 7 7 7 6 Tool/Special . | . . . . . . . . Unused Backups 11 | . 1 . . . 2 1 7 Power 1 | . 1 . . . . . . Propulsion . | . . . . . . . . Utility 7 | . . . . . 2 1 4 Weapon 3 | . . . . . . . 3 Tool/Special . | . . . . . . . . Average Slot Usage (%) 71 | . 74 83 70 66 67 76 66 Engine 3 | . 14 5 . . 1 5 . Treads 14 | . 28 27 15 11 11 11 6 Leg 1 | . . . . . . 4 7 Device 8 | . . 2 11 11 11 11 6 Storage 12 | . 12 14 11 11 11 11 23 Ballistic Gun 29 | . 14 27 33 33 33 33 17 Peak Build Rating 22 | 3 9 11 14 14 15 17 22 Average Rating 13 | 2 7 10 13 13 14 15 17 On Entrance 10 | . 3 9 11 13 14 15 17 Avg Prop Armor Cover (%) 6 | . . . . . . 6 6 Naked Turns . | . . . . . . . . Heaviest Build 38 | 3 30 31 30 30 33 33 38 Greatest Support 40 | 40 40 40 40 20 20 20 20 Greatest Overweight (x) 11 | . . . 1 1 1 1 11 Average Overweight (x) . | . . . . 1 1 1 1 Largest Inventory Capacity 15 | 5 15 15 15 15 15 15 15 Average Capacity 14 | 5 13 15 15 15 15 15 15 Most Carried 15 | 3 10 11 13 14 15 15 15 Average Carried 12 | 2 5 10 11 13 14 14 12 Final Capacity 15 | 5 15 15 15 15 15 15 15 Final Carried 15 | 3 10 9 13 14 15 15 9 Class Distribution -------------------- 77% | Gunner 22% | Mutant Dominant Class ---------------- Mutant | -10/Materials Mutant | -10/Mines Gunner | -9/Materials Gunner | -9/Mines Gunner | -9/Exiles Gunner | -8/Mines Gunner | -8/Materials Resources | -11 -10 -10 -9 -9 -9 -8 -8 ----------- Run | Yrd Mat Min Mat Min Exi Min Mat Matter Collected 1703 | 247 264 379 449 63 20 281 . Remotely . | . . . . . . . . Salvage Created 2489 | . 516 345 831 106 . 235 456 Parts 149 | . 32 19 50 8 . 10 30 Haulers Intercepted 2 | . . . 1 . . . 1 Recyclers Shooed 11 | . 4 1 5 . . 1 . Parts Field Recycled . | . . . . . . . . Retrieved Matter . | . . . . . . . . Parts Self-Destructed . | . . . . . . . . Prevented . | . . . . . . . . Parts Restored . | . . . . . . . . Kills | -11 -10 -10 -9 -9 -9 -8 -8 ------- Run | Yrd Mat Min Mat Min Exi Min Mat Combat Hostiles Destroyed 42 | . 8 9 11 2 . 4 8 Guns 35 | . 5 8 11 2 . 4 5 AOE 7 | . 3 1 . . . . 3 Classes Destroyed 11 | . 6 . 4 . . 1 . Worker 12 | . 2 . 5 1 . . 4 Builder 3 | . 1 . 1 . . . 1 Tunneler 2 | . 1 . 1 . . . . Hauler 2 | . . . 1 . . . 1 Recycler 10 | . 3 1 3 . . 2 1 Watcher 3 | . . . 3 . . . . Swarmer 18 | . 3 3 6 . . 3 3 Grunt 18 | . 5 6 3 2 . . 2 Duelist 1 | . . . 1 . . . . Sentry 4 | . . . 1 . . . 3 Hunter 1 | . . . . . . 1 . Best Kill Streak 16 | . 6 3 16 3 . 5 10 Combat Bots Only 8 | . 4 3 8 2 . 3 5 Max Kills in Single Turn 6 | . 2 2 2 1 . 1 6 Gunslinging 1 | . . 1 . . . . . Exploded 2 | . 2 1 . . . . 2 Melee . | . . . . . . . . Uniques/NPCs Destroyed . | . . . . . . . . Combat | -11 -10 -10 -9 -9 -9 -8 -8 -------- Run | Yrd Mat Min Mat Min Exi Min Mat Hostile Shots Fired 264 | . 40 40 36 9 . 15 124 Missed 84 | . 15 8 16 2 . 2 41 Hits 180 | . 25 32 20 7 . 13 83 Melee 10 | . . . 1 . . . 9 Projectile 170 | . 25 32 19 7 . 13 74 Critical Strikes 5 | . . 2 . . . . 3 Damage Taken 2736 | . 272 443 229 97 . 185 1510 Core 842 | . 49 113 15 57 . 55 553 Absorbed by Shields . | . . . . . . . . Core Remaining (%) 67 | 100 . 35 . . . 68 . Volleys Fired 161 | . 32 30 46 6 . 14 33 Largest 3 | . 2 2 3 3 . 3 3 Hottest 69 | . 46 46 69 69 . 69 69 Shots Fired 360 | . 60 56 138 18 . 42 46 Gun 344 | . 56 53 138 18 . 42 37 Cannon . | . . . . . . . . Launcher 16 | . 4 3 . . . . 9 Special . | . . . . . . . . Kinetic 344 | . 56 53 138 18 . 42 37 Thermal . | . . . . . . . . Explosive 16 | . 4 3 . . . . 9 Electromagnetic . | . . . . . . . . Robot Hit Streak 10 | . 9 5 10 4 . 4 9 Robot Miss Streak 6 | . 2 4 6 4 . 5 5 Penetration Max . | . . . . . . . . Secondary Targets 6 | . 1 1 1 . . 1 2 Max Gunslinging Chain 1 | . 1 1 1 . . 1 1 Shots Hit Robots 211 | . 37 38 75 10 . 22 29 Core Hits 110 | . 20 18 31 6 . 11 24 Critical Kills . | . . . . . . . . Critical Parts Destroyed 1 | . . . 1 . . . . Critical Strikes 1 | . . . 1 . . . . Destroy 1 | . . . 1 . . . . Melee Attacks . | . . . . . . . . Impact . | . . . . . . . . Slashing . | . . . . . . . . Piercing . | . . . . . . . . Sneak Attacks . | . . . . . . . . Combat Hostiles . | . . . . . . . . Follow-up Attacks . | . . . . . . . . Damage Inflicted 4707 | . 911 756 1358 164 . 323 1195 Guns 3297 | . 586 545 1270 164 . 323 409 Cannons . | . . . . . . . . Explosions 1410 | . 325 211 88 . . . 786 Melee . | . . . . . . . . Ramming . | . . . . . . . . Kinetic 3297 | . 586 545 1270 164 . 323 409 Thermal . | . . . . . . . . Explosive 1410 | . 325 211 88 . . . 786 Electromagnetic . | . . . . . . . . Impact . | . . . . . . . . Slashing . | . . . . . . . . Piercing . | . . . . . . . . Highest Corruption . | . . . . . . . . Average Corruption . | . . . . . . . . Corruption Purged . | . . . . . . . . Corruption Blocked . | . . . . . . . . Overload Shots . | . . . . . . . . Overflow Damage 138 | . 42 12 18 . . . 66 Projectiles . | . . . . . . . . Explosions 138 | . 42 12 18 . . . 66 Melee . | . . . . . . . . Knockbacks . | . . . . . . . . Impact . | . . . . . . . . Kinetic . | . . . . . . . . Secondary . | . . . . . . . . Self-Inflicted Damage 233 | . . 54 . . . . 179 Shots 7 | . . 2 . . . . 5 Rammed . | . . . . . . . . Targets Rammed . | . . . . . . . . Kicked . | . . . . . . . . Crushed . | . . . . . . . . Highest Temperature 40 | . 5 40 . . . . 14 Average Temperature 9 | . 2 11 . . . . 6 Received Heat Transfer 894 | . 123 216 39 57 . . 459 Siege Activations . | . . . . . . . . Martial Activations . | . . . . . . . . Shielding Activations . | . . . . . . . . Robots Disrupted . | . . . . . . . . Combat Hostiles . | . . . . . . . . Robots Corrupted . | . . . . . . . . Combat Hostiles . | . . . . . . . . Parts Fried . | . . . . . . . . Impact Corruptions . | . . . . . . . . Robots Melted . | . . . . . . . . Combat Hostiles . | . . . . . . . . Parts Melted . | . . . . . . . . Heat Transferred . | . . . . . . . . Parts Sabotaged . | . . . . . . . . Parts Stolen . | . . . . . . . . Parts Stripped . | . . . . . . . . Power Chain Reactions . | . . . . . . . . Alert | -11 -10 -10 -9 -9 -9 -8 -8 ------- Run | Yrd Mat Min Mat Min Exi Min Mat Maximum Alert Level 1 | . . . 1 . . . . Low Security (%) 93 | 100 100 100 52 100 . 100 100 Level 1 6 | . . . 47 . . . . Level 2 . | . . . . . . . . Level 3 . | . . . . . . . . Level 4 . | . . . . . . . . Level 5 . | . . . . . . . . High Security . | . . . . . . . . Max Security . | . . . . . . . . Peak Influence 257 | . 196 137 257 91 . 70 180 Initial 91 | . . 54 34 91 . . . Average 55 | . 86 97 137 14 . 12 44 Influence Increases 1442 | . 277 263 392 55 . 110 345 Destroy 0b10 Robot/C 840 | . 160 180 220 40 . 80 160 Destroy 0b10 Robot/NC 160 | . 35 5 70 5 . 10 35 Destroy Leader 210 | . 30 40 58 10 . 20 52 Disable Machine 90 | . 15 . 30 . . . 45 Destroy Structure 82 | . 22 23 14 . . . 23 Lose Combat Pursuer 60 | . 15 15 . . . . 30 Influence Decreases 1262 | . 138 313 245 291 . 110 165 Entered New Map 285 | . . 85 55 145 . . . Time Decay 837 | . 138 198 180 146 . 110 65 Lost Part 140 | . . 30 10 . . . 100 Squads Dispatched 6 | . 2 . . . . . 4 Investigation 2 | . 1 . . . . . 1 Extermination . | . . . . . . . . Reinforcement 1 | . 1 . . . . . . Assault . | . . . . . . . . Garrison 3 | . . . . . . . 3 Intercept . | . . . . . . . . Searches Triggered . | . . . . . . . . Construction Impeded . | . . . . . . . . Haulers Reinforced . | . . . . . . . . Active Scanning Responses . | . . . . . . . . Cargo Convoy Interrupts . | . . . . . . . . Stealth | -11 -10 -10 -9 -9 -9 -8 -8 --------- Run | Yrd Mat Min Mat Min Exi Min Mat Distress Signals 3 | . 1 . 1 . . . 1 Communications Jammed . | . . . . . . . . Distress Signals . | . . . . . . . . Times Spotted 60 | . 12 10 14 2 . 4 18 Peak Tracking Total 9 | . 5 3 4 1 . 2 9 Tactical Retreats 3 | . 1 1 . . . . 1 Traps | -11 -10 -10 -9 -9 -9 -8 -8 ------- Run | Yrd Mat Min Mat Min Exi Min Mat Traps Triggered 1 | . 1 . . . . . . Indirectly . | . . . . . . . . Trap Hack Attempts . | . . . . . . . . Triggered . | . . . . . . . . Disarmed . | . . . . . . . . Reprogrammed . | . . . . . . . . Reused . | . . . . . . . . Traps Extracted . | . . . . . . . . Installed . | . . . . . . . . Triggered . | . . . . . . . . Machines | -11 -10 -10 -9 -9 -9 -8 -8 ---------- Run | Yrd Mat Min Mat Min Exi Min Mat Machines Disabled 7 | . 1 . 3 . . . 3 Max in Single Turn 3 | . 1 . 2 . . . 3 Machines Repaired . | . . . . . . . . Machines Dismantled . | . . . . . . . . Machines Sabotaged . | . . . . . . . . Overloaded Fab Kills . | . . . . . . . . Hacking | -11 -10 -10 -9 -9 -9 -8 -8 --------- Run | Yrd Mat Min Mat Min Exi Min Mat Machines Accessed 2 | . . . . . . . 2 Terminals 1 | . . . . . . . 1 Fabricators . | . . . . . . . . Repair Stations . | . . . . . . . . Recycling Units . | . . . . . . . . Scanalyzers . | . . . . . . . . Garrison Access 1 | . . . . . . . 1 Total Hacks 3 | . . . . . . . 3 Successful . | . . . . . . . . Failed 3 | . . . . . . . 3 Catastrophic 2 | . . . . . . . 2 Database Lockouts . | . . . . . . . . Manual 3 | . . . . . . . 3 Terminals 1 | . . . . . . . 1 Fabricators . | . . . . . . . . Repair Stations . | . . . . . . . . Recycling Units . | . . . . . . . . Scanalyzers . | . . . . . . . . Garrison Access 2 | . . . . . . . 2 Terminal Hacks . | . . . . . . . . Fabricator Hacks . | . . . . . . . . Repair Station Hacks . | . . . . . . . . Recycling Unit Hacks . | . . . . . . . . Scanalyzer . | . . . . . . . . Garrison Access Hacks . | . . . . . . . . Unauthorized Hacks . | . . . . . . . . Terminals . | . . . . . . . . Fabricators . | . . . . . . . . Repair Stations . | . . . . . . . . Recycling Units . | . . . . . . . . Scanalyzers . | . . . . . . . . Garrison Access . | . . . . . . . . Data Cores Recovered . | . . . . . . . . Used . | . . . . . . . . Hacking Detections 1 | . . . . . . . 1 Full Trace Events 1 | . . . . . . . 1 Feedback Events . | . . . . . . . . Feedback Blocked . | . . . . . . . . Robot Schematics Acquired . | . . . . . . . . Robots Built . | . . . . . . . . Authchips . | . . . . . . . . Time . | . . . . . . . . Total Robot Build Rating . | . . . . . . . . Part Schematics Acquired . | . . . . . . . . Parts Built . | . . . . . . . . Authchips . | . . . . . . . . Time . | . . . . . . . . Total Part Build Rating . | . . . . . . . . Part Studies Acquired . | . . . . . . . . Parts Repaired . | . . . . . . . . Time . | . . . . . . . . Parts Recycled . | . . . . . . . . Recycled Matter . | . . . . . . . . Retrieved Matter . | . . . . . . . . Retrieved Components . | . . . . . . . . Parts Scanalyzed . | . . . . . . . . Part Schematics Acquired . | . . . . . . . . Parts Damaged . | . . . . . . . . Bothacking | -11 -10 -10 -9 -9 -9 -8 -8 ------------ Run | Yrd Mat Min Mat Min Exi Min Mat Used RIF Installer . | . . . . . . . . Robots Hacked . | . . . . . . . . Non-combat . | . . . . . . . . Combat . | . . . . . . . . Robot Hacks Applied . | . . . . . . . . Relay Couplers Released . | . . . . . . . . Fabnet Peak Effective % . | . . . . . . . . Robots Rewired . | . . . . . . . . Allies Hacked . | . . . . . . . . Hacks Repelled . | . . . . . . . . Allies | -11 -10 -10 -9 -9 -9 -8 -8 -------- Run | Yrd Mat Min Mat Min Exi Min Mat Total Allies . | . . . . . . . . Largest Group . | . . . . . . . . Highest-Rated Group . | . . . . . . . . Highest-Rated Ally . | . . . . . . . . Total Orders . | . . . . . . . . Ally Attacks . | . . . . . . . . Total Damage . | . . . . . . . . Kills . | . . . . . . . . Allies Corrupted . | . . . . . . . . Allies Melted . | . . . . . . . . Intel | -11 -10 -10 -9 -9 -9 -8 -8 ------- Run | Yrd Mat Min Mat Min Exi Min Mat Active Infowar (turns) . | . . . . . . . . Robot Analysis Total . | . . . . . . . . Derelict Logs Recovered 1 | . . . . 1 . . . Drone Launches . | . . . . . . . . Drone Recoveries . | . . . . . . . . Exploration | -11 -10 -10 -9 -9 -9 -8 -8 ------------- Run | Yrd Mat Min Mat Min Exi Min Mat Turns Passed 4209 | 61 409 403 430 830 1276 568 232 Spaces Moved 1700 | 39 188 191 139 338 530 220 55 Core 9 | 8 . . . . . . 1 Treads 1662 | 22 188 191 139 338 530 204 50 Legs 29 | 9 . . . . . 16 4 Wheels . | . . . . . . . . Hover . | . . . . . . . . Flight . | . . . . . . . . Fastest Speed 50 | 50 160 160 160 240 240 190 240 Average Speed 215 | 128 160 160 197 240 240 236 248 Slowest Speed 600 | 160 160 160 240 240 240 240 600 Overloaded Moves . | . . . . . . . . Propulsion Burnouts . | . . . . . . . . Robots Hopped . | . . . . . . . . Potential Cave-ins 7 | . . . . . . . 7 Cave-ins Triggered . | . . . . . . . . Exploration Rate (%) 38 | 2 39 39 18 76 79 35 17 Regions Visited 7 Branch Regions 4 Pre-discovered Areas . | . . . . . . . . Known Exits Taken . | . . . . . . . . Unknown Exits Taken 7 | 1 1 1 1 1 1 1 . Scrap Searched 5 | . . 1 . 3 . 1 . Spaces Dug 12 | . . . . . . . 12 Terrain Destroyed 140 | . 25 29 12 . . . 74 Melee . | . . . . . . . . Projectile . | . . . . . . . . AOE 140 | . 25 29 12 . . . 74 Terrain Rammed . | . . . . . . . . Walls Destroyed . | . . . . . . . . Machines Disabled . | . . . . . . . . Actions | -11 -10 -10 -9 -9 -9 -8 -8 --------- Run | Yrd Mat Min Mat Min Exi Min Mat Total 1929 | 49 237 232 193 344 536 237 101 Wait 7 | . . 5 1 . . 1 . Move 1693 | 38 187 190 138 337 529 219 55 Hop . | . . . . . . . . Pick Up 34 | 6 12 2 6 1 4 1 2 Fast Attach 1 | . . . . . . 1 . Attach 19 | 3 3 3 1 . 1 . 8 Detach . | . . . . . . . . Swap 8 | 2 1 2 . . . . 3 Drop 6 | . 2 . 1 . 2 1 . Fire 161 | . 32 30 46 6 . 14 33 Melee . | . . . . . . . . Ram . | . . . . . . . . Kick . | . . . . . . . . Crush . | . . . . . . . . Escape Stasis . | . . . . . . . . Rewire . | . . . . . . . . Trap . | . . . . . . . . Miscellaneous . | . . . . . . . . Route ------- -11/Scrapyard -10/Materials (discovered 2 exits: [*Mat] / [*Min]) -10/Mines -9/Materials -9/Mines -9/Exiles -8/Mines -8/Materials History --------- Turn | Location | Event 3 | -11/Scrapyard | Discovered new exit (range 15) 62 | -11/Scrapyard | Entered Materials 157 | -10/Materials | Discovered new exit (range 16) 314 | -10/Materials | Build established: Mutant 346 | -10/Materials | Discovered new exit (range 16) 471 | -10/Materials | Entered Mines 528 | -10/Mines | Met a Derelict bent on vengeance 744 | -10/Mines | Discovered new exit (range 8) 793 | -10/Mines | Core integrity fell below 50% 829 | -10/Mines | Lost 3 parts (1p1n1w) 874 | -10/Mines | Entered Materials 874 | -9/Materials | Evolved 2 slots: Propulsion x1, Weapon x1 1116 | -9/Materials | Destroyed 8 combat bots 1175 | -9/Materials | Discovered new exit (range 16) 1183 | -9/Materials | Build established: Gunner 1304 | -9/Materials | Entered Mines 1305 | -9/Mines | Assembled infested the area 1544 | -9/Mines | Found a damaged Exp. Sensor Array with a note attached 1549 | -9/Mines | Found Prototype Device 2088 | -9/Mines | Learned Materials interactive machine intel 2124 | -9/Mines | Discovered new exit (range 5) 2134 | -9/Mines | Entered Exiles 2192 | -9/Exiles | Met 8R-AWN 2233 | -9/Exiles | Met EX-HEX 2322 | -9/Exiles | Met EX-DEC 2960 | -9/Exiles | Visited The Gauntlet 3388 | -9/Exiles | Discovered new exit (range 10) 3410 | -9/Exiles | Entered Mines 3814 | -8/Mines | Discovered new exit (range 9) 3978 | -8/Mines | Entered Materials 3978 | -8/Materials | Evolved 2 slots: Utility x2 3979 | -8/Materials | Loaded intel: 19 interactive machine locations 4195 | -8/Materials | Core integrity fell below 50% 4207 | -8/Materials | Core integrity fell below 20% 4210 | -8/Materials | Destroyed by G-47 Trooper with Particle Gun Last Messages --------------- G-47 Trooper suffers critical hit (Burn). U-05 Engineer lays Concrete. Acquired Terrain Scanner. K-01 Serf collects debris. R-06 Scavenger collects Hvy. Assault Rifle. R-06 Scavenger destroyed. U-05 Engineer lays Concrete. G-47 Trooper destroyed. U-05 Engineer lays Concrete. Aluminum Leg destroyed. Hvy. Assault Rifle destroyed. K-01 Serf collects debris. U-05 Engineer lays Concrete. U-05 Engineer destroyed. K-01 Serf destroyed. K-01 Serf collects debris. Missile Launcher destroyed. K-01 Serf collects debris. G-47 Trooper destroyed. Critical hit (Burn: +37). Map ----- +----------------------------------------------------+ | ??????????????????"T"????????????????????????????? | | ?????????????????????????????????????????????????? | | ?????????????????????????????????????????????????? | | ?????????????????????????????????????????????????? | | ?????????????????????????????????????????????????? | | ?????????????????????????????????????????????????? | | ?????????????????????????????????????????????????? | | ?????????????????????????????????????????????????? | | ?????????????????????????????????????????????????? | | ??T?????????????????????????????????????????????## | | ???????????????????????" ???????????????????????# | | ??????????????????????? ???????????????????????# | | ????????????? ????* ? ???????????????????????# | | ????????????# ?? ? ???????????????????????# | | ????????????# ### ##+#????????????????###???# | | ????????????# # #??????????????### ##### | | ????????????# g ###?############ # | | ????????????# ! %g #?# # # | | ????????????# g #?# T # # | | ????????????# /= #?# """ # ## | | ????????????# %! #?# """"" # # | | ????????????# [ !! #?# """"" # # | | ????????????# % *=#?# """"" ###### | | ????????????# ==%=#?# """ #???# | | ????????????# [Y%[*#?# #???##### | | ????????????# %!!*@ ####+########???????# | | ??????"?"???# ! = "%"%l= #??????????# | | ??????"Y"???#k % "G"[ga #??????????# | | ??????"""? + " = g #??????????### | | ????????? ## #????????????? | | ????????????# = #????????????? | | ????????????##########+#+###### #????????????? | | ????????????????????? ???????# #????????????? | | ????????????????????? ???????# #????????????? | | ????????????????????? ???????? #????????????? | | ???????????????????? ???????? ???????????? | | ????"T"????????????? ???????? ###??????????? | | ???????????????????? ???????? #????????????? | | ???????????????????? ?????????? #????????????? | | ??????????????????????????????? #????"""?????? | | ??????????????????????????????? #????"Y"?????? | | ???????????????????????????????? ????????????????? | | ?????????????????????????????????????????????????? | | ????????????????????????????????T????????????????? | | ?????????????????????????????????????????????????? | | ?????????????????????????????????????????????????? | | ?????????????????????????????????????????????????? | | ?????????????????????????????????????????????????? | | ?????????????????????????????????????????????????? | | ?????????????????????????????????????????????????? | +----------------------------------------------------+ Best States ------------- Heat Dissipation 45 Energy Generation 14 Energy Capacity 160 Matter Stores 630 Matter Capacity 650 Sight Range 16 Terrain Scan Density 10 Armor Coverage 225 Evasion (%) 45 Recoil Reduction 2 Item Schematics ----------------- None Robot Schematics ------------------ None Fabricated ------------ Nothing Repaired ---------- Nothing Studied --------- None Alien Tech Used ----------------- None Achievements -------------- None Challenges ------------ None Game ------ Seed ChipAblativeMicrothruster Manual? 0 Play Time 00:14:57 Cumulative 275.1 hours Start 2026.04.23 @ 18:24:37 End 2026.04.23 @ 18:37:26 Sessions 1 Manual Loads 0 Difficulty Rogue Special Mode None Game No. 724 Rogue 722 Adventurer 2 Explorer 0 Win Type - Total 0 Types 0/0/0/0/0/0/0/0/0/0 Lore% 68 Gallery% 64 Achievement% 45 Wizard Run 0 Options --------- Layout 2 ASCII 0 Keyboard 0 Movement Mouse Keybinds 0 Fullscreen 1 Font 24/Smallcaps Map View 50x44 Zoom Use 0% Tactical HUD 0 Map Filters NONE Filters NONE Steam 1 RUN: 959e425e-7609-42c2-91e6-7903c4c270fa